Cogmind - Beta 12 *** ADVENTURER MODE // 2023.03.20 @ 23:19:57 Player: BRiNK Result: Destroyed by B-75 Beast with Magnetic Acceleration Cannon Performance ------------- Evolutions (5) 2500 Regions Visited (16) 3200 Robots Destroyed (109) 545 Value Destroyed (4443) 4443 Prototype IDs (2) 40 Alien Tech Used (0) 0 Bonus (646) 646 TOTAL SCORE: 11374 Bonus ------- High Alert Combat Kills 59 Follower Combat Kills 87 Entered DSFs 500 Cogmind --------- Core Integrity 0/1000 Matter 291/300 Energy 290/290 System Corruption 14% Temperature Cool (12) Movement Walking (126) Location -5/Upper Caves Parts ------- > --- POWER (2) -------- Improved Deuterium Engine > --- PROPULSION (3) --- Carbon-fiber Leg Makeshift Leg Flexi-carbon Leg > --- UTILITY (8) ------ Improved Heat Sink Improved Heat Sink Advanced Heat Sink Makeshift Salvage Targeting Computer Advanced Targeting Computer Weapon Cycler Hardened Light Armor Plating Makeshift Hacking Suite > --- WEAPON (4) ------- Autogun Ripper > --- INVENTORY (5) ---- Improved Remote Datajack Peak State ------------ > --- POWER ------------ Makeshift Power Source Makeshift Power Source > --- PROPULSION ------- Wheel Wheel > --- UTILITY ---------- Improved Thermal Generator Advanced Heat Sink Advanced Targeting Computer Weapon Cycler Improved Light Armor Plating Improved Thermal Shield Improved Thermal Shield > --- WEAPON ----------- Tesla Rifle Disruptor Cannon Disruptor Cannon Makeshift Axe > --- INVENTORY -------- Makeshift Power Source [Rating: 64] Favorites ----------- Power Light Deuterium Engine Engine Light Deuterium Engine Power Core Light Nuclear Core Propulsion Light Treads Treads Light Treads Leg Improved Titanium Leg Wheel Wheel Hover Unit Gravmag System Flight Unit Xenon Bombardment Thruster Utility Weapon Cycler Device Weapon Cycler Storage High-capacity Storage Unit Processor Transport Network Coupler Hackware Makeshift Hacking Suite Protection Improved Light Armor Plating Weapon Light Assault Rifle Energy Gun Lightning Gun Energy Cannon Disruptor Cannon Ballistic Gun Light Assault Rifle Ballistic Cannon Mini Assault Cannon Launcher Proton Missile Launcher Special Weapon Enhanced Flamer Slashing Weapon Makeshift Axe Build | -11 -10 -10 -9 -9 -8 -7 -7 -7 -7 -6 -6 -6 -6 -5 -5 -5 ------- Run | Jun Mat Min Mat Min Mat Fac Was Fac Sto Fac Was Fac DSF Fac Upp Upp Slots Evolved 10 | . . . 2 . 2 2 . . . 2 . . . 2 . . Power 1 | . . . 1 . . . . . . . . . . . . . Propulsion 1 | . . . . . 1 . . . . . . . . . . . Utility 6 | . . . 1 . 1 2 . . . 1 . . . 1 . . Weapon 2 | . . . . . . . . . . 1 . . . 1 . . Parts Attached 120 | 6 2 1 5 3 11 5 . 12 12 6 2 6 7 9 31 2 Power 16 | 1 . 1 3 . . . . 2 2 1 1 . . . 5 . Engine 15 | 1 . 1 3 . . . . 2 1 1 1 . . . 5 . Core 1 | . . . . . . . . . 1 . . . . . . . Reactor . | . . . . . . . . . . . . . . . . . Propulsion 28 | 2 . . . 2 3 1 . 1 5 . . 2 2 3 6 1 Treads 4 | 2 . . . . . . . . 2 . . . . . . . Leg 17 | . . . . 2 3 1 . 1 3 . . . . . 6 1 Wheel 3 | . . . . . . . . . . . . . . 3 . . Hover 3 | . . . . . . . . . . . . 1 2 . . . Flight 1 | . . . . . . . . . . . . 1 . . . . Utility 42 | 1 2 . 1 . 2 3 . 5 4 3 1 3 2 2 13 . Device 26 | . 1 . . . 1 3 . 2 1 2 1 3 2 1 9 . Storage 3 | 1 1 . . . . . . 1 . . . . . . . . Processor 6 | . . . . . . . . 1 2 1 . . . 1 1 . Hackware 1 | . . . . . . . . . . . . . . . 1 . Protection 6 | . . . 1 . 1 . . 1 1 . . . . . 2 . Artifact . | . . . . . . . . . . . . . . . . . Weapon 34 | 2 . . 1 1 6 1 . 4 1 2 . 1 3 4 7 1 Energy Gun 4 | 1 . . . 1 . 1 . . . . . . . 1 . . Energy Cannon 4 | . . . . . . . . . . 1 . . . 1 2 . Ballistic Gun 8 | 1 . . 1 . 3 . . 1 . . . . . 1 . 1 Ballistic Cannon 5 | . . . . . . . . 3 1 1 . . . . . . Launcher 6 | . . . . . 2 . . . . . . 1 2 1 . . Special Weapon 3 | . . . . . 1 . . . . . . . 1 . 1 . Impact Weapon . | . . . . . . . . . . . . . . . . . Slashing Weapon 4 | . . . . . . . . . . . . . . . 4 . Piercing Weapon . | . . . . . . . . . . . . . . . . . Special Melee Weapon . | . . . . . . . . . . . . . . . . . Unidentified Prototypes 1 | . . . . . . . . 1 . . . . . . . . Corrupted Parts 2 | . . . . . . . . . . . . . . . 2 . System Corruption 10 | . . . . . . . . . . . . . . . 10 . Parts Lost 66 | . . 2 . 2 3 . 3 . 9 5 8 . 7 7 18 2 Power 9 | . . 1 . . . . . . 2 2 . . . . 3 1 Propulsion 15 | . . . . 2 . . . . 3 . 1 . 1 3 5 . Utility 24 | . . . . . 1 . 2 . 3 2 6 . 2 2 6 . Weapon 18 | . . 1 . . 2 . 1 . 1 1 1 . 4 2 4 1 Highest Loss Streak 8 | . . 2 . 2 3 . 3 . 2 1 8 . 4 7 5 1 To Critical Strikes . | . . . . . . . . . . . . . . . . . Average Slot Usage (%) 79 | . 95 88 100 99 99 100 84 90 89 90 39 28 31 38 57 82 Engine 10 | . 14 11 22 22 18 15 15 15 10 5 5 . . . 6 11 Treads 6 | . 28 28 22 9 . . . . 2 13 6 . . . . . Leg 9 | . . . . 11 27 23 23 23 17 . . . . . 4 12 Device 15 | . 9 14 11 11 9 30 24 17 13 16 7 17 10 8 23 23 Storage 5 | . 14 14 11 11 9 7 4 4 7 6 3 . . . . . Processor 6 | . . . . . . . . 7 15 20 8 . . 4 5 11 Protection 4 | . . . 11 11 17 7 4 6 6 1 . . . . 1 5 Energy Gun 2 | . 14 5 . 4 8 7 4 . . . . . . . 1 . Ballistic Gun 4 | . 14 14 22 17 3 7 4 5 . . . . . 3 . 2 Ballistic Cannon 4 | . . . . . . . . 8 14 17 5 . . . . . Naked Turns 47 | . . . . . . . . . . . 47 . . . . . Heaviest Build 81 | 11 27 27 36 39 49 52 52 79 79 76 81 15 31 25 52 34 Greatest Support 58 | 40 40 40 40 40 41 51 51 53 58 56 56 9 18 20 45 55 Greatest Overweight (x) 17 | . . . . 1 1 1 1 1 3 1 17 2 3 5 8 . Average Overweight (x) . | . . . . . . 1 . . 1 1 . 1 1 1 . . Largest Inventory Capacity 20 | 8 15 15 15 15 15 15 15 20 20 20 20 5 5 5 5 5 Average Capacity 12 | 6 14 15 15 15 15 15 12 14 20 20 12 5 5 5 5 5 Most Carried 14 | 5 3 5 5 12 14 12 10 7 12 5 5 3 5 5 5 2 Average Carried 5 | 1 2 4 2 9 12 9 8 3 8 3 3 1 4 4 1 1 Final Capacity 20 | 8 15 15 15 15 15 15 5 20 20 20 5 5 5 5 5 5 Final Carried 13 | 2 3 5 4 12 13 10 5 7 5 5 3 3 5 . 1 1 Class Distribution -------------------- 60% | Mutant 15% | Gunner 14% | Scavenger-Mutant 7% | Derelict-Mutant Dominant Class ---------------- Mutant | -10/Materials Mutant | -10/Mines Mutant | -9/Materials Scavenger-Mutant | -9/Mines Scavenger-Mutant | -8/Materials Mutant | -7/Factory Mutant | -7/Waste Mutant | -7/Factory Mutant | -7/Storage Gunner | -6/Factory Mutant | -6/Waste Mutant | -6/Factory Mutant | -6/DSF Gunner | -5/Factory Derelict-Mutant | -5/Upper Caves Scavenger-Mutant | -5/Upper Caves Resources | -11 -10 -10 -9 -9 -8 -7 -7 -7 -7 -6 -6 -6 -6 -5 -5 -5 ----------- Run | Jun Mat Min Mat Min Mat Fac Was Fac Sto Fac Was Fac DSF Fac Upp Upp Matter Collected 3139 | 262 33 12 30 71 163 . . 115 1147 478 . . 192 143 435 58 Remotely . | . . . . . . . . . . . . . . . . . Salvage Created 4274 | 19 209 27 . 114 369 . . 132 1164 602 . . 352 411 856 19 Parts 163 | 1 23 2 . 6 20 . . 4 31 14 . . 9 19 33 1 Haulers Intercepted 3 | . . . . . 1 . . . 2 . . . . . . . Recyclers Shooed 1 | . . . . . . . . . . . . . . 1 . . Parts Field Recycled . | . . . . . . . . . . . . . . . . . Retrieved Matter . | . . . . . . . . . . . . . . . . . Parts Self-Destructed 21 | . . . . . . . . . . . . . . . 18 3 Prevented 10 | . . . . . . . . . . . . . . . 10 . Kills | -11 -10 -10 -9 -9 -8 -7 -7 -7 -7 -6 -6 -6 -6 -5 -5 -5 ------- Run | Jun Mat Min Mat Min Mat Fac Was Fac Sto Fac Was Fac DSF Fac Upp Upp Combat Hostiles Destroyed 87 | . 8 . . 3 9 . . 3 26 12 . . 6 5 13 2 Melee 10 | . . . . . . . . . . . . . . . 9 1 Guns 19 | . 8 . . 3 2 . . . . . . . . 3 3 . Cannons 42 | . . . . . . . . 3 25 12 . . . 1 1 . AOE 13 | . . . . . 6 . . . . . . . 6 1 . . Classes Destroyed 15 | 1 4 . . . 3 . . . 4 . . . 2 . 1 . Worker 4 | 1 . 1 . . . . . . 1 . . . . 1 . . Builder 4 | . 1 . . . . . . . 2 . . . . 1 . . Hauler 3 | . . . . . 1 . . . 2 . . . . . . . Recycler 5 | . . . . . . . . . 3 1 . . . 1 . . Minesweeper 1 | . . . . . . . . . . . . . . . 1 . Mechanic 2 | . 1 . . . 1 . . . . . . . . . . . Watcher 3 | . . . . . 1 . . . 2 . . . . . . . Swarmer 12 | . 6 . . . 4 . . . . . . . . . . 2 Grunt 45 | . 2 . . 3 3 . . 2 14 8 . . 3 4 6 . Duelist 1 | . . . . . . . . . 1 . . . . . . . Sentry 12 | . . . . . 2 . . 1 8 . . . . . 1 . Specialist 2 | . . . . . . . . . . . . . 2 . . . Hunter 7 | . . . . . . . . . 2 3 . . . 1 1 . Programmer 3 | . . . . . . . . . 1 1 . . . . 1 . Heavy 1 | . . . . . . . . . . . . . 1 . . . Thug 4 | . . . . . . . . . . . . . . . 4 . Best Kill Streak 10 | 1 3 1 . 2 6 . . 2 10 4 . . 6 6 4 2 Combat Bots Only 6 | . 3 . . 2 4 . . 2 5 3 . . 6 3 4 2 Max Kills in Single Turn 4 | 1 1 1 . 1 4 . . 1 2 2 . . 2 4 1 1 Gunslinging . | . . . . . . . . . . . . . . . . . Exploded 4 | . . . . . 4 . . . . . . . 2 1 . . Melee 1 | . . . . . . . . . . . . . . . 1 1 Uniques/NPCs Destroyed . | . . . . . . . . . . . . . . . . . Combat | -11 -10 -10 -9 -9 -8 -7 -7 -7 -7 -6 -6 -6 -6 -5 -5 -5 -------- Run | Jun Mat Min Mat Min Mat Fac Was Fac Sto Fac Was Fac DSF Fac Upp Upp Damage Taken 8327 | 24 96 363 26 217 651 . 120 181 1433 756 330 . 793 1192 1869 276 Core 1976 | . 34 74 . 20 57 . . 43 171 34 210 . 321 471 479 62 Absorbed by Shields 18 | . . . . . . . . . . . . . 18 . . . Redirected to Shielding 51 | . . . . . . . . 30 21 . . . . . . . Core Remaining (%) 73 | 100 . 56 . 95 89 . . . 69 . . . 33 . . . Volleys Fired 235 | 2 14 2 . 15 22 . . 8 84 30 . . 16 18 16 8 Largest 3 | 2 2 2 . 2 2 . . 2 2 3 . . 2 3 3 1 Hottest 227 | 60 60 60 . 40 100 . . 96 96 181 . . 75 162 227 80 Shots Fired 445 | 4 28 4 . 30 37 . . 16 158 88 . . 18 26 27 9 Gun 135 | 4 28 4 . 30 30 . . 4 . . . . . 18 16 1 Cannon 276 | . . . . . . . . 12 158 88 . . . 7 11 . Launcher 23 | . . . . . 5 . . . . . . . 17 1 . . Special 11 | . . . . . 2 . . . . . . . 1 . . 8 Kinetic 327 | 2 14 2 . 30 13 . . 16 158 73 . . . 18 . 1 Thermal 32 | . . . . . 2 . . . . 15 . . . 7 . 8 Explosive 20 | . . . . . 5 . . . . . . . 15 . . . Electromagnetic 65 | 2 14 2 . . 17 . . . . . . . 2 1 27 . Robot Hit Streak 27 | 4 9 3 . 16 23 . . 7 27 14 . . 19 9 13 7 Robot Miss Streak 4 | . 1 1 . 1 3 . . 1 4 4 . . 1 1 1 1 Penetration Max 1 | . . . . . . . . . 1 1 . . . 1 . . Secondary Targets . | . . . . . . . . . . . . . . . . . Shots Hit Robots 392 | 4 21 3 . 27 31 . . 11 120 61 . . 17 20 67 10 Core Hits 207 | 1 12 2 . 10 16 . . 6 55 27 . . 34 14 27 3 Critical Kills . | . . . . . . . . . . . . . . . . . Critical Parts Destroyed . | . . . . . . . . . . . . . . . . . Critical Strikes 28 | . 2 . . . 1 . . . 18 5 . . . . 2 . Blast 23 | . . . . . . . . . 18 5 . . . . . . Corrupt 4 | . 2 . . . 1 . . . . . . . . . 1 . Sever 1 | . . . . . . . . . . . . . . . 1 . Melee Attacks 53 | . . . . . . . . . . . . . . . 49 4 Impact . | . . . . . . . . . . . . . . . . . Slashing 53 | . . . . . . . . . . . . . . . 49 4 Piercing . | . . . . . . . . . . . . . . . . . Sneak Attacks 1 | . . . . . . . . . . . . . . . 1 . Combat Hostiles . | . . . . . . . . . . . . . . . . . Follow-up Attacks . | . . . . . . . . . . . . . . . . . Damage Inflicted 12589 | 88 291 93 . 232 973 . . 220 3517 1668 . . 1494 1685 2151 177 Guns 1808 | 38 227 43 . 213 373 . . 20 . . . . . 505 389 . Cannons 5631 | . . . . . . . . 189 3462 1668 . . . 171 141 . Explosions 3233 | 50 63 50 . . 570 . . . . . . . 1494 1006 . . Melee 1720 | . . . . . . . . . . . . . . . 1621 99 Ramming 95 | . 1 . . 19 6 . . 11 55 . . . . 3 . . Kinetic 5919 | 10 78 18 . 213 106 . . 209 3462 1318 . . . 505 . . Thermal 1796 | 50 63 50 . . 111 . . . . 350 . . . 1094 . 78 Explosive 1949 | . . . . . 483 . . . . . . . 1466 . . . Electromagnetic 1110 | 28 149 25 . . 267 . . . . . . . 28 83 530 . Impact . | . . . . . . . . . . . . . . . . . Slashing 1720 | . . . . . . . . . . . . . . . 1621 99 Piercing . | . . . . . . . . . . . . . . . . . Highest Corruption 14 | . . . . . . . . . . . 7 7 7 . 14 14 Average Corruption 8 | . . . . . . . . . . . 7 7 7 . 6 14 Corruption Purged . | . . . . . . . . . . . . . . . . . Corruption Blocked . | . . . . . . . . . . . . . . . . . Effects 39 | . . . . . . . . . . . 3 3 8 . 15 10 Message Errors 11 | . . . . . . . . . . . . . 2 . 4 5 Matter Fused 11 | . . . . . . . . . . . . 2 4 . 3 2 Heat Flow Errors 3 | . . . . . . . . . . . 1 . . . 1 1 Energy Discharges 4 | . . . . . . . . . . . . 1 . . 2 1 Parts Rejected 1 | . . . . . . . . . . . . . 1 . . . Data Loss (minor) 3 | . . . . . . . . . . . 1 . . . 2 . Data Loss (major) 2 | . . . . . . . . . . . . . . . 2 . Misfires 2 | . . . . . . . . . . . . . 1 . . 1 Alerts 2 | . . . . . . . . . . . 1 . . . 1 . Overload Shots . | . . . . . . . . . . . . . . . . . Overflow Damage 305 | . . . . . . . . 15 46 36 . . 21 125 62 . Projectiles 127 | . . . . . . . . 15 46 36 . . . 22 8 . Explosions 124 | . . . . . . . . . . . . . 21 103 . . Melee 54 | . . . . . . . . . . . . . . . 54 . Knockbacks 54 | . . . . . . . . 1 35 18 . . . . . . Impact . | . . . . . . . . . . . . . . . . . Kinetic 46 | . . . . . . . . 1 29 16 . . . . . . Secondary 8 | . . . . . . . . . 6 2 . . . . . . Self-Inflicted Damage 158 | 24 7 28 . . 55 . . . . . . . 3 41 . . Shots 8 | 1 1 1 . . 3 . . . . . . . 1 1 . . Rammed 3 | . . . . 1 . . . . 1 . . . . 1 . . Targets Rammed 21 | . 1 . . 4 2 . . 1 12 . . . . 1 . . Kicked 16 | . . . . 3 2 . . 1 10 . . . . . . . Crushed 2 | . 1 . . . . . . . 1 . . . . . . . Highest Temperature 475 | 32 58 12 3 6 91 . . 36 72 198 80 . . 52 475 36 Average Temperature 79 | 19 25 12 3 3 35 . . 16 23 115 43 . . 13 194 36 Received Heat Transfer 3170 | . 24 . 27 138 360 . . 93 711 162 . . 63 511 1069 12 Effects 4 | . . . . . . . . . . . . . . . 4 . Shutdowns 4 | . . . . . . . . . . . . . . . 4 . Siege Activations . | . . . . . . . . . . . . . . . . . Robots Corrupted 1 | . . . . . 1 . . . . . . . . . . . Combat Hostiles 1 | . . . . . 1 . . . . . . . . . . . Parts Fried 7 | . 1 . . . 2 . . . . . . . . . 4 . Impact Corruptions 1 | . . . . . . . . . 1 . . . . . . . Robots Melted 1 | . . . . . . . . . . . . . . . . 1 Combat Hostiles 1 | . . . . . . . . . . . . . . . . 1 Parts Melted 2 | . . . . . 1 . . . . . . . . . . 1 Heat Transferred 2252 | 50 100 100 . . 100 . . . . 407 . . . 935 . 560 Parts Sabotaged . | . . . . . . . . . . . . . . . . . Parts Stolen . | . . . . . . . . . . . . . . . . . Parts Stripped . | . . . . . . . . . . . . . . . . . Power Chain Reactions 4 | 1 1 1 . . 1 . . . . . . . . . . . Missiles Intercepted . | . . . . . . . . . . . . . . . . . Alert | -11 -10 -10 -9 -9 -8 -7 -7 -7 -7 -6 -6 -6 -6 -5 -5 -5 ------- Run | Jun Mat Min Mat Min Mat Fac Was Fac Sto Fac Was Fac DSF Fac Upp Upp Peak Influence 480 | 5 186 54 32 75 145 62 18 77 480 220 53 3 164 411 . . Initial 111 | . 2 33 17 10 . 48 18 . 30 111 38 . 3 57 . . Average 96 | . 77 43 20 32 85 54 11 23 241 91 21 . 114 126 . . Maximum Alert Level 2 | . . . . . . . . . 2 1 . . . 2 . . Low Security (%) 87 | 100 100 100 100 100 100 100 100 100 46 95 100 100 100 73 . . Level 1 10 | . . . . . . . . . 39 4 . . . 24 . . Level 2 2 | . . . . . . . . . 14 . . . . 2 . . Level 3 . | . . . . . . . . . . . . . . . . . Level 4 . | . . . . . . . . . . . . . . . . . Level 5 . | . . . . . . . . . . . . . . . . . High Security . | . . . . . . . . . . . . . . . . . Max Security . | . . . . . . . . . . . . . . . . . Squads Dispatched 23 | . 1 . . 1 4 . . 2 6 3 . 1 2 3 . . Investigation 9 | . 1 . . . 2 . . 1 1 2 . 1 . 1 . . Extermination 2 | . . . . . . . . . 1 1 . . . . . . Reinforcement 9 | . . . . 1 2 . . 1 2 . . . 2 1 . . Assault 1 | . . . . . . . . . . . . . . 1 . . Garrison 2 | . . . . . . . . . 2 . . . . . . . Intercept . | . . . . . . . . . . . . . . . . . Searches Triggered . | . . . . . . . . . . . . . . . . . Construction Impeded 4 | . . . . 1 . . . . 2 . . . . 1 . . Haulers Reinforced . | . . . . . . . . . . . . . . . . . Active Scanning Responses . | . . . . . . . . . . . . . . . . . Cargo Convoy Interrupts . | . . . . . . . . . . . . . . . . . Stealth | -11 -10 -10 -9 -9 -8 -7 -7 -7 -7 -6 -6 -6 -6 -5 -5 -5 --------- Run | Jun Mat Min Mat Min Mat Fac Was Fac Sto Fac Was Fac DSF Fac Upp Upp Distress Signals 3 | . . . . . . . . . 2 . . . . 1 . . Communications Jammed . | . . . . . . . . . . . . . . . . . Distress Signals . | . . . . . . . . . . . . . . . . . Times Spotted 166 | . 12 3 1 4 16 . 6 5 36 15 6 . 10 21 27 4 Peak Tracking Total 11 | . 4 10 1 3 5 . 6 2 5 3 6 . 4 11 5 3 Tactical Retreats 16 | . . 1 . 1 . . . . 4 2 . . . 5 3 . Traps | -11 -10 -10 -9 -9 -8 -7 -7 -7 -7 -6 -6 -6 -6 -5 -5 -5 ------- Run | Jun Mat Min Mat Min Mat Fac Was Fac Sto Fac Was Fac DSF Fac Upp Upp Traps Triggered 5 | . 1 . . . 1 1 . . . 1 . . . 1 . . Indirectly . | . . . . . . . . . . . . . . . . . Trap Hack Attempts . | . . . . . . . . . . . . . . . . . Triggered . | . . . . . . . . . . . . . . . . . Disarmed 6 | . . . . . . . . 6 . . . . . . . . Reprogrammed . | . . . . . . . . . . . . . . . . . Reused 3 | . . . . . . . . . . . . . . . 3 . Traps Extracted . | . . . . . . . . . . . . . . . . . Installed 5 | . . . . . . . . . . . . . . . 5 . Triggered 3 | . . . . . . . . . . . . . . . 3 . Most Traps Carried 3 | . . . . 3 3 3 3 1 . . . . . . 3 . Machines | -11 -10 -10 -9 -9 -8 -7 -7 -7 -7 -6 -6 -6 -6 -5 -5 -5 ---------- Run | Jun Mat Min Mat Min Mat Fac Was Fac Sto Fac Was Fac DSF Fac Upp Upp Machines Disabled 12 | . . . . . . . . 1 1 2 . . . 8 . . Max in Single Turn 8 | . . . . . . . . 1 1 1 . . . 8 . . Garrison Access 2 | . . . . . . . . . 1 . . . . 1 . . Machines Repaired . | . . . . . . . . . . . . . . . . . Machines Sabotaged . | . . . . . . . . . . . . . . . . . Overloaded Fab Kills . | . . . . . . . . . . . . . . . . . Hacking | -11 -10 -10 -9 -9 -8 -7 -7 -7 -7 -6 -6 -6 -6 -5 -5 -5 --------- Run | Jun Mat Min Mat Min Mat Fac Was Fac Sto Fac Was Fac DSF Fac Upp Upp Machines Accessed 18 | . 1 . . 1 1 1 . 3 3 4 . 2 . . 2 . Terminals 11 | . 1 . . . 1 . . 3 2 2 . 2 . . . . Fabricators 2 | . . . . . . 1 . . . 1 . . . . . . Repair Stations . | . . . . . . . . . . . . . . . . . Recycling Units . | . . . . . . . . . . . . . . . . . Scanalyzers 1 | . . . . . . . . . . 1 . . . . . . Garrison Access 1 | . . . . . . . . . 1 . . . . . . . Total Hacks 41 | . 1 . . 1 3 2 . 7 8 7 . 4 . . 8 . Successful 23 | . . . . 1 . 2 . 2 2 5 . 3 . . 8 . Failed 18 | . 1 . . . 3 . . 5 6 2 . 1 . . . . Catastrophic 6 | . 1 . . . 1 . . 2 . 2 . . . . . . Database Lockouts . | . . . . . . . . . . . . . . . . . Manual 15 | . 1 . . . 3 1 . 5 2 3 . . . . . . Terminals 23 | . 1 . . . 3 . . 7 5 3 . 4 . . . . Fabricators 3 | . . . . . . 2 . . . 1 . . . . . . Repair Stations . | . . . . . . . . . . . . . . . . . Recycling Units . | . . . . . . . . . . . . . . . . . Scanalyzers 3 | . . . . . . . . . . 3 . . . . . . Garrison Access 3 | . . . . . . . . . 3 . . . . . . . Terminal Hacks 13 | . . . . 1 . . . 1 . . . 3 . . 8 . Record 9 | . . . . . . . . . . . . 2 . . 7 . Open Door 2 | . . . . 1 . . . . . . . . . . 1 . Open DSF 1 | . . . . . . . . . . . . 1 . . . . Disarm Traps 1 | . . . . . . . . 1 . . . . . . . . Fabricator Hacks 2 | . . . . . . 1 . . . 1 . . . . . . Network Status 1 | . . . . . . 1 . . . . . . . . . . Build 1 | . . . . . . . . . . 1 . . . . . . Repair Station Hacks . | . . . . . . . . . . . . . . . . . Recycling Unit Hacks . | . . . . . . . . . . . . . . . . . Scanalyzer 3 | . . . . . . . . . . 3 . . . . . . Insert Component 2 | . . . . . . . . . . 2 . . . . . . Analyze 1 | . . . . . . . . . . 1 . . . . . . Garrison Access Hacks 1 | . . . . . . . . . 1 . . . . . . . Seal Access 1 | . . . . . . . . . 1 . . . . . . . Unauthorized Hacks 4 | . . . . . . 1 . 1 1 1 . . . . . . Terminals 3 | . . . . . . . . 1 1 1 . . . . . . Track 1 | . . . . . . . . . 1 . . . . . . . Assimilate 1 | . . . . . . . . . . 1 . . . . . . Botnet 1 | . . . . . . . . 1 . . . . . . . . Fabricators 1 | . . . . . . 1 . . . . . . . . . . Prioritize 1 | . . . . . . 1 . . . . . . . . . . Repair Stations . | . . . . . . . . . . . . . . . . . Recycling Units . | . . . . . . . . . . . . . . . . . Scanalyzers . | . . . . . . . . . . . . . . . . . Garrison Access . | . . . . . . . . . . . . . . . . . Data Cores Recovered . | . . . . . . . . . . . . . . . . . Used . | . . . . . . . . . . . . . . . . . Hacking Detections 12 | . 1 . . . 1 1 . 3 2 3 . 1 . . . . Full Trace Events 6 | . . . . . 1 . . 1 1 2 . 1 . . . . Feedback Events . | . . . . . . . . . . . . . . . . . Feedback Blocked . | . . . . . . . . . . . . . . . . . Robot Schematics Acquired . | . . . . . . . . . . . . . . . . . Robots Built 1 | . . . . . . . . . . 1 . . . . . . Authchips . | . . . . . . . . . . . . . . . . . Time 81 | . . . . . . . . . . 81 . . . . . . Total Robot Build Rating 1 | . . . . . . . . . . 1 . . . . . . Part Schematics Acquired 1 | . . . . . . . . . . 1 . . . . . . Parts Built . | . . . . . . . . . . . . . . . . . Authchips . | . . . . . . . . . . . . . . . . . Time . | . . . . . . . . . . . . . . . . . Total Part Build Rating . | . . . . . . . . . . . . . . . . . Parts Repaired . | . . . . . . . . . . . . . . . . . Time . | . . . . . . . . . . . . . . . . . Parts Recycled . | . . . . . . . . . . . . . . . . . Recycled Matter . | . . . . . . . . . . . . . . . . . Retrieved Matter . | . . . . . . . . . . . . . . . . . Retrieved Components . | . . . . . . . . . . . . . . . . . Parts Scanalyzed 1 | . . . . . . . . . . 1 . . . . . . Part Schematics Acquired 1 | . . . . . . . . . . 1 . . . . . . Parts Damaged . | . . . . . . . . . . . . . . . . . Bothacking | -11 -10 -10 -9 -9 -8 -7 -7 -7 -7 -6 -6 -6 -6 -5 -5 -5 ------------ Run | Jun Mat Min Mat Min Mat Fac Was Fac Sto Fac Was Fac DSF Fac Upp Upp Used RIF Installer . | . . . . . . . . . . . . . . . . . Robots Hacked 1 | . . . . . . . . . . . . . 1 . . . Non-combat . | . . . . . . . . . . . . . . . . . Combat 1 | . . . . . . . . . . . . . 1 . . . Robot Hacks Applied 1 | . . . . . . . . . . . . . 1 . . . parse_system 1 | . . . . . . . . . . . . . 1 . . . Relay Couplers Released 2 | . . . . . . . . . . . . . . 2 . . Machine Destruction 2 | . . . . . . . . . . . . . . 2 . . Fabnet Peak Effective % . | . . . . . . . . . . . . . . . . . Robots Rewired . | . . . . . . . . . . . . . . . . . Allies Hacked . | . . . . . . . . . . . . . . . . . Hacks Repelled . | . . . . . . . . . . . . . . . . . Allies | -11 -10 -10 -9 -9 -8 -7 -7 -7 -7 -6 -6 -6 -6 -5 -5 -5 -------- Run | Jun Mat Min Mat Min Mat Fac Was Fac Sto Fac Was Fac DSF Fac Upp Upp Total Allies 3 | . . . . . . . . . . 1 . . . . 2 . Largest Group 2 | . . . . . . . . . . 1 . . . . 2 . Highest-Rated Group 62 | . . . . . . . . . . 6 . . . . 62 . Highest-Rated Ally 31 | . . . . . . . . . . 6 . . . . 31 . Total Orders . | . . . . . . . . . . . . . . . . . Ally Attacks 11 | . . . . . . . . . . . . . . . 11 . Total Damage 207 | . . . . . . . . . . . . . . . 207 . Kills 2 | . . . . . . . . . . . . . . . 2 . Allies Corrupted . | . . . . . . . . . . . . . . . . . Allies Melted . | . . . . . . . . . . . . . . . . . Intel | -11 -10 -10 -9 -9 -8 -7 -7 -7 -7 -6 -6 -6 -6 -5 -5 -5 ------- Run | Jun Mat Min Mat Min Mat Fac Was Fac Sto Fac Was Fac DSF Fac Upp Upp Robot Analysis Total . | . . . . . . . . . . . . . . . . . Derelict Logs Recovered 3 | . . 1 . . . . . . . . . . . . 2 . Drone Launches . | . . . . . . . . . . . . . . . . . Drone Recoveries . | . . . . . . . . . . . . . . . . . Exploration | -11 -10 -10 -9 -9 -8 -7 -7 -7 -7 -6 -6 -6 -6 -5 -5 -5 ------------- Run | Jun Mat Min Mat Min Mat Fac Was Fac Sto Fac Was Fac DSF Fac Upp Upp Turns Passed 8590 | 111 644 301 170 752 581 126 228 594 1254 1001 98 138 232 571 1539 250 Spaces Moved 4727 | 62 336 183 100 393 260 63 146 334 458 315 103 91 136 444 1124 179 Core 542 | 6 . . . . . . . . . . 84 32 20 165 235 . Treads 1266 | 56 336 183 100 184 . . . . 73 315 19 . . . . . Legs 2015 | . . . . 209 260 63 146 334 385 . . . . . 439 179 Wheels 571 | . . . . . . . . . . . . . . 121 450 . Hover 322 | . . . . . . . . . . . . 48 116 158 . . Flight 11 | . . . . . . . . . . . . 11 . . . . Fastest Speed 50 | 50 160 160 160 160 120 190 123 123 160 240 50 120 50 50 50 120 Average Speed 153 | 149 160 160 160 176 189 192 156 159 207 240 93 139 138 112 114 121 Slowest Speed 900 | 160 160 160 160 240 190 193 193 196 330 240 900 200 240 300 450 126 Overloaded Moves . | . . . . . . . . . . . . . . . . . Propulsion Burnouts . | . . . . . . . . . . . . . . . . . Robots Hopped . | . . . . . . . . . . . . . . . . . Cave-ins Triggered . | . . . . . . . . . . . . . . . . . Exploration Rate (%) 37 | 6 37 38 16 69 26 2 77 8 57 7 88 2 79 11 93 26 Regions Visited 16 Branch Regions 5 Pre-discovered Areas . | . . . . . . . . . . . . . . . . . Known Exits Taken 3 | . . . 1 . . . . . 1 . . 1 . . . . Unknown Exits Taken 8 | 1 1 1 . 1 1 . . 1 . . . . . 1 1 . Scrap Searched 6 | . . 1 . 1 . . . . . . . . . . 3 1 Spaces Dug . | . . . . . . . . . . . . . . . . . Terrain Destroyed 176 | 8 8 6 . . 41 . . 2 35 12 . . 40 24 . . Melee . | . . . . . . . . . . . . . . . . . Projectile 53 | . . . . . . . . 2 35 12 . . . 4 . . AOE 123 | 8 8 6 . . 41 . . . . . . . 40 20 . . Terrain Rammed . | . . . . . . . . . . . . . . . . . Walls Destroyed . | . . . . . . . . . . . . . . . . . Machines Disabled . | . . . . . . . . . . . . . . . . . Actions | -11 -10 -10 -9 -9 -8 -7 -7 -7 -7 -6 -6 -6 -6 -5 -5 -5 --------- Run | Jun Mat Min Mat Min Mat Fac Was Fac Sto Fac Was Fac DSF Fac Upp Upp Total 5582 | 77 417 188 110 426 306 69 145 380 595 509 104 102 163 492 1304 195 Wait 276 | . 61 . . . . . . 7 14 152 . . . 12 30 . Move 4713 | 61 335 182 99 392 259 63 145 333 457 315 102 90 135 443 1123 179 Hop . | . . . . . . . . . . . . . . . . . Pick Up 123 | 8 3 3 4 11 8 1 . 13 11 6 . 5 4 4 40 2 Fast Attach 11 | . . . . . . . . . . . . . 6 4 1 . Attach 89 | 6 1 1 3 3 3 4 . 7 9 5 2 6 2 5 30 2 Detach 2 | . . . . . . . . 1 . . . 1 . . . . Swap 21 | . 1 . 2 . 8 1 . 5 3 1 . . . . . . Drop 33 | . 1 . 2 1 4 . . 5 5 . . . . 5 10 . Fire 235 | 2 14 2 . 15 22 . . 8 84 30 . . 16 18 16 8 Melee 53 | . . . . . . . . . . . . . . . 49 4 Ram 1 | . . . . . . . . . . . . . . 1 . . Kick 16 | . . . . 3 2 . . 1 10 . . . . . . . Crush 4 | . 1 . . 1 . . . . 2 . . . . . . . Escape Stasis . | . . . . . . . . . . . . . . . . . Rewire . | . . . . . . . . . . . . . . . . . Trap 5 | . . . . . . . . . . . . . . . 5 . Miscellaneous . | . . . . . . . . . . . . . . . . . Route ------- -11/Junkyard -10/Materials -10/Mines -9/Materials (discovered 2 exits: *Min x2) -9/Mines -8/Materials -7/Factory -7/Waste -7/Factory -7/Storage -6/Factory -6/Waste -6/Factory -6/DSF -5/Factory -5/Upper Caves -5/Upper Caves History --------- Turn | Location | Event 5 | -11/Junkyard | Discovered new exit (range 14) 112 | -11/Junkyard | Entered Materials 321 | -10/Materials | Build established: Mutant 640 | -10/Materials | Discovered new exit (range 7) 756 | -10/Materials | Entered Mines 810 | -10/Mines | Assembled infested the area 831 | -10/Mines | Met 8R-AWN 1033 | -10/Mines | Discovered new exit (range 16) 1057 | -10/Mines | Entered Materials 1057 | -9/Materials | Evolved 2 slots: Power x1, Utility x1 1058 | -9/Materials | Identified exit to Mines 1227 | -9/Materials | Entered Mines 1249 | -9/Mines | Met a Derelict bent on vengeance 1429 | -9/Mines | Found a hidden stash of uninstalled traps 1633 | -9/Mines | Met a Derelict who couldn't figure out how to use a Trap Extractor 1796 | -9/Mines | Received a Rocket Launcher from a helpful Derelict 1862 | -9/Mines | Build established: Scavenger-Mutant 1913 | -9/Mines | Discovered new exit (range 14) 1979 | -9/Mines | Entered Materials 1979 | -8/Materials | Evolved 2 slots: Propulsion x1, Utility x1 2535 | -8/Materials | Discovered new exit (range 4) 2560 | -8/Materials | Entered Factory 2560 | -7/Factory | Evolved 2 slots: Utility x2 2586 | -7/Factory | Lost 3 parts (1u2w) 2686 | -7/Factory | Sucked down chute 2686 | -7/Factory | Entered Waste 2704 | -7/Waste | Build established: Mutant 2723 | -7/Waste | Spotted C-40 Crusher 2727 | -7/Waste | Spotted C-40 Crusher 2748 | -7/Waste | Spotted C-40 Crusher 2766 | -7/Waste | Spotted C-40 Crusher 2818 | -7/Waste | Spotted C-40 Crusher 2820 | -7/Waste | Crushed by Compactor (1 part destroyed, 1 dropped) 2844 | -7/Waste | Crushed by Compactor (1 part destroyed, 1 dropped) 2848 | -7/Waste | Crushed by Compactor (1 part destroyed, 1 dropped) 2851 | -7/Waste | Spotted C-40 Crusher 2879 | -7/Waste | Lost 3 parts (2u1w) 2902 | -7/Waste | Discovered new exit (range 11) 2914 | -7/Waste | Entered Factory 3456 | -7/Factory | Discovered new exit (range 3) 3508 | -7/Factory | Entered Storage 4246 | -7/Storage | Garrison activated, responded to threat 4750 | -7/Storage | Discovered new exit (range 6) 4760 | -7/Storage | Identified exit to Factory 4762 | -7/Storage | Entered Factory 4762 | -6/Factory | Evolved 2 slots: Utility x1, Weapon x1 5057 | -6/Factory | Build established: Gunner 5586 | -6/Factory | Fabricated K-01 Serf? 5763 | -6/Factory | Sucked down chute 5763 | -6/Factory | Entered Waste 5778 | -6/Waste | EMP discharged 5782 | -6/Waste | Spotted C-40 Crusher 5799 | -6/Waste | Crushed by Compactor (1 part destroyed, 1 dropped) 5804 | -6/Waste | Spotted C-40 Crusher 5808 | -6/Waste | Crushed by Compactor (1 part destroyed, 1 dropped) 5809 | -6/Waste | Spotted C-40 Crusher 5809 | -6/Waste | Spotted C-40 Crusher 5809 | -6/Waste | Spotted C-40 Crusher 5809 | -6/Waste | Spotted C-40 Crusher 5811 | -6/Waste | Crushed by Compactor (1 part destroyed, 2 dropped) 5814 | -6/Waste | Crushed by Compactor (1 part destroyed, 2 dropped) 5814 | -6/Waste | Crushed by Compactor (1 part destroyed) 5845 | -6/Waste | Lost 8 parts (1n6u1w) 5856 | -6/Waste | Discovered new exit (range 10) 5861 | -6/Waste | Entered Factory 5999 | -6/Factory | Identified exit to DSF 5999 | -6/Factory | Entered DSF 6027 | -6/DSF | Additional patrols routed to DSF 6073 | -6/DSF | Core integrity fell below 50% 6087 | -6/DSF | Build established: Mutant 6105 | -6/DSF | Lost 3 parts (2u1w) 6135 | -6/DSF | Discovered new exit (range 13) 6231 | -6/DSF | Entered Factory 6231 | -5/Factory | Evolved 2 slots: Utility x1, Weapon x1 6249 | -5/Factory | Lost 4 parts (1n3w) 6710 | -5/Factory | Lost 7 parts (3n2u2w) 6736 | -5/Factory | Spotted B-75 Beast 6790 | -5/Factory | Discovered new exit (range 15) 6802 | -5/Factory | Entered Upper Caves 6822 | -5/Upper Caves | Learned location of 1 exit from Proximity Caves 7147 | -5/Upper Caves | Attracted the attention of an 0b10 checkpoint 7263 | -5/Upper Caves | Ambushed by wild Derelicts 7303 | -5/Upper Caves | Core integrity fell below 50% 7353 | -5/Upper Caves | Lost 5 parts (1p1n3w) 7458 | -5/Upper Caves | Build established: Derelict-Mutant 7839 | -5/Upper Caves | Lost 5 parts (1p2n2u) 7914 | -5/Upper Caves | Learned Factory emergency access door positions 8082 | -5/Upper Caves | Core integrity fell below 20% 8106 | -5/Upper Caves | Learned Extension stockpile data 8106 | -5/Upper Caves | Learned 8 Factory zone layouts 8106 | -5/Upper Caves | Learned Armory stockpile data 8106 | -5/Upper Caves | Learned Research security intel 8106 | -5/Upper Caves | Learned Research terminal intel 8106 | -5/Upper Caves | A Commander dispatched an escort 8115 | -5/Upper Caves | Lost 4 parts (1p2u1w) 8134 | -5/Upper Caves | Build established: Mutant 8219 | -5/Upper Caves | System corruption reached 10% 8332 | -5/Upper Caves | Discovered new exit (range 6) 8341 | -5/Upper Caves | Entered another Upper Caves area 8511 | -5/Upper Caves | Build established: Scavenger-Mutant 8590 | -5/Upper Caves | Spotted B-75 Beast 8591 | -5/Upper Caves | Destroyed by B-75 Beast with Magnetic Acceleration Cannon Last Messages --------------- 08475_ Enh. Flamer destroyed. 08477_ Lgt. Nuclear Core fries itself beyond repair. 08484_ S-27 Virus destroyed. 08487_ Acquired 14 matter. 08489_ Acquired Autogun. 08492_ KKUCW3Q 08591_ Lgt. Angular Momentum Engine destroyed. [Achievement: This Is Interesting...] Map ----- +----------------------------------------------------+ | ?????????????????????????????????????????????????? | | ?????????????????????????????????????????????????? | | ?????????????????????????????????????????????????? | | ?????????????????????????????????????????????????? | | ?????????????????????????????????????????????????? | | ?????????????????????????????????????????????????? | | ?????????????????????????????????????????????????? | | ?????????????????????????????????????????????????? | | ????????????????????????????????????????????#????? | | ??????????????????????????????????????????## ????? | | ???????????????????????????????????????#### #####? | | ??????????????????????????????????????## ## ## #? | | ?????????????????????????????########## # #?? | | ?????????????????????????????# ##? | | ?????????????????????????????# ## | | ????????????????????????###### ########## | | ????????????????????????# #????????## ## | | ????????????????????????# ######?????????#### # | | ????????????????????????# #?????????????????# | | ????????????????????????# #?????????????????# | | ????????????????????????# #????????????????# ## | | ????????????????????????# #????????????????# #? | | ????????????????????????# #????????????????# #? | | ??????????????????????### ##??????? #??######? | | ??????????????????????# ## BB #????????? | | ??????????????????????# @ BB ????????? | | ??????????????????????# ????????? | | ??????????????????????## #????????? | | ???????????????????????## #####?????????? | | ????????????????????????# #?????????????? | | ????????????????????????## #?????????????? | | ??????????????????????????# #####?????????????? | | ??????????????????????????? #?????????????????? | | ???????????????????????????# #?????????????????? | | ???????????????????????????? ?????????????????? | | ???????????????????????????? ##????????????????? | | ????????????????????????????####?????????????????? | | ?????????????????????????????????????????????????? | | ?????????????????????????????????????????????????? | | ?????????????????????????????????????????????????? | | ?????????????????????????????????????????????????? | | ?????????????????????????????????????????????????? | | ?????????????????????????????????????????????????? | | ?????????????????????????????????????????????????? | | ?????????????????????????????????????????????????? | | ?????????????????????????????????????????????????? | | ?????????????????????????????????????????????????? | | ?????????????????????????????????????????????????? | | ?????????????????????????????????????????????????? | | ?????????????????????????????????????????????????? | +----------------------------------------------------+ Best States ------------- Heat Dissipation 87 Coolant Potential 65 Energy Generation 31 Energy Capacity 480 Matter Stores 300 Matter Capacity 300 Sight Range 16 Terrain Scan Density 10 EM Shielding 2 Armor Coverage 375 Resistance: KI 20 Resistance: TH 45 Resistance: EX 20 Resistance: EM 20 Resistance: I 20 Resistance: S 20 Resistance: P 20 Utility Shielding 66 Weapon Cycling 15 Evasion (%) 55 Targeting Accuracy 8 Recoil Reduction 2 Particle Charging 15 Salvage Targeting 4 Offensive Hacking 21 Item Schematics ----------------- Imp. Grenade Launcher | -6/Factory | Scanalyzed Robot Schematics ------------------ None Fabricated ------------ K-01 Serf | x1 | -6/Factory | Preloaded Alien Tech Used ----------------- None Achievements -------------- Slippery One This Is Interesting... Universal Adapter Challenges ------------ None Game ------ Seed LegSpikedEngine Manual? 0 Play Time 01:21:35 Cumulative 36.7 hours Start 2023.03.19 @ 19:04:01 End 2023.03.20 @ 23:19:57 Sessions 3 Manual Loads 0 Difficulty Adventurer Special Mode None Game No. 44 Rogue 43 Adventurer 1 Explorer 0 Win Type - Total 0 Types 0/0/0/0/0/0/0/0/0 Lore% 25 Gallery% 35 Achievement% 28 Wizard Run 0 Options --------- ASCII 0 Keyboard 0 Movement Mouse Keybinds 0 Fullscreen 1 Font 24/Crisp Map View 76x50 Tactical HUD 1 Map Filters NONE Filters NONE Steam 1 RUN: 11fbda11-86dc-4d65-82d5-bacc4fc29b44